[Event "Early-Titled-Tuesday-Blitz-September-26-2023"]
[Site "Chess.com"]
[Date "2023.09.26"]
[Round "7"]
[White "levallem"]
[Black "Kostya0705"]
[Result "0-1"]
[WhiteElo "2371"]
[BlackElo "2589"]
[TimeControl "180+1"]
[EndTime "9:18:08 PDT"]
[Termination "Kostya0705 won by checkmate"]

1. d4 {[%clk 0:03:00.9]} 1... Nf6 {[%clk 0:02:56.8]} 2. Nf3 {[%clk 0:03:01.2]}
2... d5 {[%clk 0:02:56]} 3. e3 {[%clk 0:02:58]} 3... e6 {[%clk 0:02:55.9]} 4.
Bd3 {[%clk 0:02:57.1]} 4... c5 {[%clk 0:02:56.8]} 5. b3 {[%clk 0:02:57.2]} 5...
Nc6 {[%clk 0:02:57.1]} 6. O-O {[%clk 0:02:57.4]} 6... b6 {[%clk 0:02:57.4]} 7.
Bb2 {[%clk 0:02:57.6]} 7... Bb7 {[%clk 0:02:57]} 8. Nbd2 {[%clk 0:02:14.7]} 8...
Be7 {[%clk 0:02:53.5]} 9. Ne5 {[%clk 0:01:54.6]} 9... O-O {[%clk 0:02:52.9]} 10.
f4 {[%clk 0:01:53.6]} 10... a5 {[%clk 0:02:51.7]} 11. g4 {[%clk 0:01:47.8]}
11... Qc8 {[%clk 0:02:50.8]} 12. g5 {[%clk 0:01:47.8]} 12... Nd7 {[%clk
0:02:48.3]} 13. Bxh7+ {[%clk 0:01:42.1]} 13... Kxh7 {[%clk 0:02:46.3]} 14. Qh5+
{[%clk 0:01:43]} 14... Kg8 {[%clk 0:02:46.3]} 15. g6 {[%clk 0:01:43.6]} 15...
fxg6 {[%clk 0:02:41.6]} 16. Nxg6 {[%clk 0:01:42.1]} 16... Rf5 {[%clk 0:02:34.4]}
17. Qh3 {[%clk 0:01:13.7]} 17... Ba6 {[%clk 0:02:27.7]} 18. Rf2 {[%clk 0:01:08]}
18... Nf6 {[%clk 0:02:25.8]} 19. dxc5 {[%clk 0:01:06.4]} 19... Bxc5 {[%clk
0:02:17.4]} 20. Rg2 {[%clk 0:00:40.9]} 20... Kf7 {[%clk 0:02:08.3]} 21. Kh1
{[%clk 0:00:19]} 21... Qg8 {[%clk 0:02:02.7]} 22. Rag1 {[%clk 0:00:18.2]} 22...
Rh5 {[%clk 0:01:43.3]} 23. Qf3 {[%clk 0:00:14.5]} 23... Qh7 {[%clk 0:01:42.1]}
24. Ne5+ {[%clk 0:00:13.9]} 24... Nxe5 {[%clk 0:01:33.3]} 25. fxe5 {[%clk
0:00:14.8]} 25... Rf5 {[%clk 0:01:27.6]} 26. Rxg7+ {[%clk 0:00:12.4]} 26... Qxg7
{[%clk 0:01:27.1]} 27. Rxg7+ {[%clk 0:00:13.1]} 27... Kxg7 {[%clk 0:01:27.1]}
28. exf6+ {[%clk 0:00:13.5]} 28... Kf7 {[%clk 0:01:26.6]} 29. Qh3 {[%clk
0:00:12.4]} 29... Rg8 {[%clk 0:01:20.8]} 30. Qh7+ {[%clk 0:00:12.4]} 30... Kf8
{[%clk 0:01:21]} 31. Qh6+ {[%clk 0:00:10.6]} 31... Ke8 {[%clk 0:01:15.1]} 32. c4
{[%clk 0:00:09.1]} 32... dxc4 {[%clk 0:01:10.8]} 33. bxc4 {[%clk 0:00:07.6]}
33... Bb7+ {[%clk 0:01:10.8]} 34. e4 {[%clk 0:00:05.4]} 34... Rg1# {[%clk
0:01:10.1]} 0-1

[Event "Early-Titled-Tuesday-Blitz-September-26-2023"]
[Site "Chess.com"]
[Date "2023.09.26"]
[Round "7"]
[White "yoelpolanco"]
[Black "Mr_Lion22"]
[Result "0-1"]
[WhiteElo "2332"]
[BlackElo "2471"]
[TimeControl "180+1"]
[EndTime "9:18:13 PDT"]
[Termination "Mr_Lion22 won on time"]

1. d4 {[%clk 0:03:00]} 1... Nf6 {[%clk 0:02:37.2]} 2. c4 {[%clk 0:02:59.7]} 2...
g6 {[%clk 0:02:36.7]} 3. Nc3 {[%clk 0:02:59.5]} 3... d5 {[%clk 0:02:37.6]} 4.
cxd5 {[%clk 0:02:58.9]} 4... Nxd5 {[%clk 0:02:38.5]} 5. Nf3 {[%clk 0:02:58.9]}
5... Bg7 {[%clk 0:02:38]} 6. Qb3 {[%clk 0:02:58.1]} 6... Nb6 {[%clk 0:02:34.8]}
7. e4 {[%clk 0:02:56.5]} 7... O-O {[%clk 0:02:35.3]} 8. Be3 {[%clk 0:02:54.9]}
8... Bg4 {[%clk 0:02:34.1]} 9. O-O-O {[%clk 0:02:46.8]} 9... e6 {[%clk
0:02:31.5]} 10. h3 {[%clk 0:02:38.4]} 10... Bxf3 {[%clk 0:02:30.6]} 11. gxf3
{[%clk 0:02:39.3]} 11... Nc6 {[%clk 0:02:29.1]} 12. h4 {[%clk 0:02:26.7]} 12...
Nxd4 {[%clk 0:02:22.6]} 13. Qb4 {[%clk 0:02:08]} 13... c5 {[%clk 0:02:21.4]} 14.
Qxc5 {[%clk 0:02:04.8]} 14... Rc8 {[%clk 0:02:22]} 15. Bxd4 {[%clk 0:01:27.9]}
15... Rxc5 {[%clk 0:02:20.1]} 16. Bxc5 {[%clk 0:01:27.9]} 16... Qc7 {[%clk
0:02:17.4]} 17. Bd6 {[%clk 0:01:19.2]} 17... Qc8 {[%clk 0:02:13.9]} 18. Bxf8
{[%clk 0:01:17.7]} 18... Bxc3 {[%clk 0:02:13.6]} 19. Ba3 {[%clk 0:00:59.8]}
19... Bxb2+ {[%clk 0:01:40.9]} 20. Kxb2 {[%clk 0:00:32.8]} 20... Na4+ {[%clk
0:01:40.9]} 21. Kb3 {[%clk 0:00:28.2]} 21... Qc3+ {[%clk 0:01:41.3]} 22. Kxa4
{[%clk 0:00:27.7]} 22... Qc2+ {[%clk 0:01:35.8]} 23. Kb4 {[%clk 0:00:26.2]}
23... Qxd1 {[%clk 0:01:34.7]} 24. h5 {[%clk 0:00:20.4]} 24... Qxf3 {[%clk
0:01:33.6]} 25. Rh3 {[%clk 0:00:05]} 25... Qxf2 {[%clk 0:01:32.7]} 26. Bc4
{[%clk 0:00:03.6]} 26... Qd2+ {[%clk 0:01:16]} 27. Rc3 {[%clk 0:00:03]} 27...
a5+ {[%clk 0:01:13.6]} 28. Kb3 {[%clk 0:00:02.9]} 28... a4+ {[%clk 0:01:08.1]}
29. Kb4 {[%clk 0:00:03]} 29... Qd4 {[%clk 0:01:05]} 0-1

[Event "Early-Titled-Tuesday-Blitz-September-26-2023"]
[Site "Chess.com"]
[Date "2023.09.26"]
[Round "7"]
[White "blitzking1729"]
[Black "Mikhail_Golubev"]
[Result "1-0"]
[WhiteElo "2761"]
[BlackElo "2587"]
[TimeControl "180+1"]
[EndTime "9:18:18 PDT"]
[Termination "blitzking1729 won on time"]

1. d4 {[%clk 0:03:00.9]} 1... Nf6 {[%clk 0:02:59.2]} 2. c4 {[%clk 0:03:01.1]}
2... g6 {[%clk 0:02:59.6]} 3. g3 {[%clk 0:03:00.6]} 3... Bg7 {[%clk 0:02:59.8]}
4. Bg2 {[%clk 0:03:01.3]} 4... O-O {[%clk 0:03:00.3]} 5. Nc3 {[%clk 0:03:00.9]}
5... d6 {[%clk 0:03:00.1]} 6. Nf3 {[%clk 0:03:01.6]} 6... Nbd7 {[%clk
0:02:59.8]} 7. O-O {[%clk 0:03:01.9]} 7... e5 {[%clk 0:03:00.3]} 8. e4 {[%clk
0:03:02.3]} 8... exd4 {[%clk 0:03:00.5]} 9. Nxd4 {[%clk 0:03:03.2]} 9... Re8
{[%clk 0:03:00.8]} 10. h3 {[%clk 0:03:03.4]} 10... a6 {[%clk 0:03:00.9]} 11. Re1
{[%clk 0:03:01.7]} 11... Rb8 {[%clk 0:03:00.3]} 12. Rb1 {[%clk 0:02:57]} 12...
c5 {[%clk 0:02:56.1]} 13. Nc2 {[%clk 0:02:54.2]} 13... b5 {[%clk 0:02:51.7]} 14.
cxb5 {[%clk 0:02:50.5]} 14... axb5 {[%clk 0:02:52.6]} 15. Qxd6 {[%clk
0:02:41.6]} 15... Rb6 {[%clk 0:02:39.8]} 16. Qd1 {[%clk 0:02:39.9]} 16... b4
{[%clk 0:02:39.9]} 17. Nd5 {[%clk 0:02:39.6]} 17... Nxd5 {[%clk 0:02:24.2]} 18.
exd5 {[%clk 0:02:39.2]} 18... Rxe1+ {[%clk 0:02:16.2]} 19. Qxe1 {[%clk
0:02:40.1]} 19... Ne5 {[%clk 0:02:16]} 20. Be3 {[%clk 0:02:27.1]} 20... Bxh3
{[%clk 0:02:08.8]} 21. Rd1 {[%clk 0:02:17.8]} 21... Bxg2 {[%clk 0:01:45.9]} 22.
Kxg2 {[%clk 0:02:17.7]} 22... Rd6 {[%clk 0:01:40.6]} 23. Bxc5 {[%clk 0:01:47.8]}
23... Rxd5 {[%clk 0:01:39.3]} 24. Ne3 {[%clk 0:01:47.6]} 24... Rxd1 {[%clk
0:01:02.2]} 25. Qxd1 {[%clk 0:01:48.5]} 25... Qxd1 {[%clk 0:00:26.4]} 26. Nxd1
{[%clk 0:01:48.3]} 26... Nd3 {[%clk 0:00:26.3]} 27. Bd6 {[%clk 0:01:47.8]} 27...
f5 {[%clk 0:00:16.1]} 28. Kf3 {[%clk 0:01:45.6]} 28... Kf7 {[%clk 0:00:15.8]}
29. Ke2 {[%clk 0:01:45.8]} 29... Nxb2 {[%clk 0:00:14]} 30. Nxb2 {[%clk
0:01:44.3]} 30... Bxb2 {[%clk 0:00:13.1]} 31. Bxb4 {[%clk 0:01:45]} 31... Ke6
{[%clk 0:00:13.3]} 32. a4 {[%clk 0:01:42.4]} 32... Kd5 {[%clk 0:00:13.1]} 33. a5
{[%clk 0:01:41.6]} 33... h5 {[%clk 0:00:10.4]} 34. Bd2 {[%clk 0:01:39.8]} 34...
Kc6 {[%clk 0:00:07.6]} 35. Ke3 {[%clk 0:01:30.9]} 35... Kb5 {[%clk 0:00:05.4]}
36. Kf4 {[%clk 0:01:30.4]} 36... Bf6 {[%clk 0:00:05.2]} 37. Be1 {[%clk
0:01:23.4]} 37... Ka6 {[%clk 0:00:03.7]} 38. Ke3 {[%clk 0:01:19.7]} 1-0

[Event "Early-Titled-Tuesday-Blitz-September-26-2023"]
[Site "Chess.com"]
[Date "2023.09.26"]
[Round "7"]
[White "h4parah5"]
[Black "lamomiajunior"]
[Result "1-0"]
[WhiteElo "2962"]
[BlackElo "2752"]
[TimeControl "180+1"]
[EndTime "9:18:26 PDT"]
[Termination "h4parah5 won on time"]

1. Nf3 {[%clk 0:03:00.9]} 1... d5 {[%clk 0:03:00.1]} 2. e3 {[%clk 0:03:00.4]}
2... Nf6 {[%clk 0:03:00.5]} 3. c4 {[%clk 0:02:59.8]} 3... e6 {[%clk 0:02:59.4]}
4. b3 {[%clk 0:03:00]} 4... c6 {[%clk 0:02:57.5]} 5. Bb2 {[%clk 0:02:58.8]} 5...
Nbd7 {[%clk 0:02:58.1]} 6. Nc3 {[%clk 0:02:52.7]} 6... Bd6 {[%clk 0:02:58.5]} 7.
Qc2 {[%clk 0:02:52.5]} 7... O-O {[%clk 0:02:58.6]} 8. Be2 {[%clk 0:02:52.5]}
8... Qe7 {[%clk 0:02:46.4]} 9. Rg1 {[%clk 0:02:43.4]} 9... e5 {[%clk 0:02:42.9]}
10. g4 {[%clk 0:02:42.6]} 10... d4 {[%clk 0:02:11.9]} 11. exd4 {[%clk
0:02:27.6]} 11... exd4 {[%clk 0:02:12.8]} 12. Nxd4 {[%clk 0:02:26.9]} 12... Nc5
{[%clk 0:01:37.9]} 13. O-O-O {[%clk 0:02:18.8]} 13... Be5 {[%clk 0:01:35.3]} 14.
Nf5 {[%clk 0:02:02.6]} 14... Bxf5 {[%clk 0:01:33.7]} 15. Qxf5 {[%clk 0:02:00.4]}
15... Bxc3 {[%clk 0:01:06.1]} 16. Bxc3 {[%clk 0:02:01.3]} 16... Qxe2 {[%clk
0:01:04.3]} 17. Qxc5 {[%clk 0:01:59]} 17... Ne4 {[%clk 0:00:57.9]} 18. Qe3
{[%clk 0:01:55.3]} 18... Nxc3 {[%clk 0:00:56.8]} 19. Qxc3 {[%clk 0:01:55.9]}
19... Qxf2 {[%clk 0:00:56.1]} 20. h3 {[%clk 0:01:40.1]} 20... a5 {[%clk
0:00:54]} 21. Rgf1 {[%clk 0:01:38.2]} 21... Qb6 {[%clk 0:00:51]} 22. a4 {[%clk
0:01:31]} 22... Rad8 {[%clk 0:00:46.3]} 23. Rf5 {[%clk 0:01:30.5]} 23... c5
{[%clk 0:00:38.1]} 24. Re1 {[%clk 0:01:23.6]} 24... Qc7 {[%clk 0:00:27.2]} 25.
Rfe5 {[%clk 0:01:16.3]} 25... b6 {[%clk 0:00:26.8]} 26. g5 {[%clk 0:01:13]}
26... Rd4 {[%clk 0:00:26.2]} 27. Qf3 {[%clk 0:01:08.6]} 27... Qd6 {[%clk
0:00:24.6]} 28. Re8 {[%clk 0:00:50.2]} 28... Qd7 {[%clk 0:00:09.6]} 29. Qa8
{[%clk 0:00:46.1]} 1-0

[Event "Early-Titled-Tuesday-Blitz-September-26-2023"]
[Site "Chess.com"]
[Date "2023.09.26"]
[Round "7"]
[White "KaydenTroffChess"]
[Black "RandomNoob04"]
[Result "1-0"]
[WhiteElo "2767"]
[BlackElo "2614"]
[TimeControl "180+1"]
[EndTime "9:18:28 PDT"]
[Termination "KaydenTroffChess won by resignation"]

1. d4 {[%clk 0:03:00.9]} 1... Nf6 {[%clk 0:02:59.6]} 2. Nf3 {[%clk 0:03:01.6]}
2... e6 {[%clk 0:02:57.3]} 3. Bf4 {[%clk 0:03:01.7]} 3... c5 {[%clk 0:02:55.8]}
4. e3 {[%clk 0:03:02.2]} 4... b6 {[%clk 0:02:55.5]} 5. Nbd2 {[%clk 0:03:02]}
5... Bb7 {[%clk 0:02:56.1]} 6. Nc4 {[%clk 0:03:02.3]} 6... d5 {[%clk 0:02:52.3]}
7. Nce5 {[%clk 0:03:02.5]} 7... Nbd7 {[%clk 0:02:49.2]} 8. Bb5 {[%clk
0:03:01.9]} 8... a6 {[%clk 0:02:47.3]} 9. Ng5 {[%clk 0:03:01.8]} 9... axb5
{[%clk 0:02:11]} 10. Nexf7 {[%clk 0:03:02]} 10... Qe7 {[%clk 0:01:53.7]} 11.
Nxh8 {[%clk 0:03:00.7]} 11... e5 {[%clk 0:01:47.6]} 12. dxe5 {[%clk 0:02:54]}
12... Nxe5 {[%clk 0:01:48.5]} 13. Nxh7 {[%clk 0:02:36.9]} 13... Neg4 {[%clk
0:01:22.5]} 14. h3 {[%clk 0:01:28.2]} 14... Nxh7 {[%clk 0:01:13.9]} 15. Qxg4
{[%clk 0:01:27.1]} 15... Nf6 {[%clk 0:01:10.7]} 16. Qg6+ {[%clk 0:01:24.3]}
16... Kd7 {[%clk 0:01:11]} 17. Qf5+ {[%clk 0:01:24.2]} 17... Qe6 {[%clk
0:01:06.8]} 18. Qxe6+ {[%clk 0:01:24.2]} 18... Kxe6 {[%clk 0:01:07.7]} 19. Ng6
{[%clk 0:01:24.7]} 19... d4 {[%clk 0:00:51.6]} 20. O-O {[%clk 0:01:24.4]} 20...
dxe3 {[%clk 0:00:47.1]} 21. Rfe1 {[%clk 0:01:20]} 21... Nd5 {[%clk 0:00:43.4]}
22. Nxf8+ {[%clk 0:01:18]} 22... Rxf8 {[%clk 0:00:42.4]} 23. Bxe3 {[%clk
0:01:18.7]} 23... Kf7 {[%clk 0:00:40]} 24. c3 {[%clk 0:01:15.3]} 24... Bc6
{[%clk 0:00:39.1]} 25. Rad1 {[%clk 0:01:14.4]} 25... Ra8 {[%clk 0:00:32.7]} 26.
a3 {[%clk 0:01:13.9]} 26... Ra4 {[%clk 0:00:33.3]} 27. Bg5 {[%clk 0:01:13.4]}
27... b4 {[%clk 0:00:28.8]} 28. axb4 {[%clk 0:01:12.5]} 28... cxb4 {[%clk
0:00:29.7]} 29. c4 {[%clk 0:01:13.1]} 29... Nf6 {[%clk 0:00:27.6]} 30. Rd6
{[%clk 0:01:12.3]} 30... Ne4 {[%clk 0:00:20.8]} 31. Rxc6 {[%clk 0:01:09.6]}
31... Nxg5 {[%clk 0:00:21.4]} 32. Rxb6 {[%clk 0:01:10]} 32... b3 {[%clk
0:00:19.3]} 33. Re5 {[%clk 0:01:04.7]} 33... Nh7 {[%clk 0:00:15.9]} 34. c5
{[%clk 0:01:03.7]} 34... Ra2 {[%clk 0:00:11.8]} 35. Rxb3 {[%clk 0:01:03.2]}
35... g5 {[%clk 0:00:11.4]} 36. Rb6 {[%clk 0:01:00.7]} 36... Ra1+ {[%clk
0:00:07.1]} 37. Kh2 {[%clk 0:01:00.7]} 37... Rc1 {[%clk 0:00:07.3]} 38. Rd5
{[%clk 0:00:59.5]} 38... Nf6 {[%clk 0:00:06.5]} 39. Rf5 {[%clk 0:00:59.8]} 1-0

[Event "Early-Titled-Tuesday-Blitz-September-26-2023"]
[Site "Chess.com"]
[Date "2023.09.26"]
[Round "7"]
[White "Shuvalov"]
[Black "pirulillo"]
[Result "1-0"]
[WhiteElo "2477"]
[BlackElo "2362"]
[TimeControl "180+1"]
[EndTime "9:18:30 PDT"]
[Termination "Shuvalov won by resignation"]

1. d4 {[%clk 0:03:00.9]} 1... Nf6 {[%clk 0:02:59]} 2. c4 {[%clk 0:03:01]} 2...
g6 {[%clk 0:02:53.7]} 3. Nc3 {[%clk 0:03:01]} 3... Bg7 {[%clk 0:02:53.6]} 4. e4
{[%clk 0:03:01.2]} 4... d6 {[%clk 0:02:53.5]} 5. Nf3 {[%clk 0:03:01.7]} 5... O-O
{[%clk 0:02:52.9]} 6. Be2 {[%clk 0:03:02.4]} 6... e5 {[%clk 0:02:51.5]} 7. O-O
{[%clk 0:03:02.8]} 7... Nc6 {[%clk 0:02:51.3]} 8. d5 {[%clk 0:03:02.6]} 8... Ne7
{[%clk 0:02:51.1]} 9. Ne1 {[%clk 0:03:03.2]} 9... Nd7 {[%clk 0:02:50.6]} 10. f3
{[%clk 0:03:03.6]} 10... f5 {[%clk 0:02:50.4]} 11. g4 {[%clk 0:03:04.2]} 11...
Nf6 {[%clk 0:02:45]} 12. Nd3 {[%clk 0:03:02.3]} 12... c5 {[%clk 0:02:37.5]} 13.
a3 {[%clk 0:02:55.9]} 13... h6 {[%clk 0:02:31.7]} 14. h4 {[%clk 0:02:55.3]}
14... Nh7 {[%clk 0:02:25.4]} 15. Rf2 {[%clk 0:02:50.6]} 15... fxe4 {[%clk
0:02:17.2]} 16. fxe4 {[%clk 0:02:48.3]} 16... Rxf2 {[%clk 0:02:17.3]} 17. Nxf2
{[%clk 0:02:49.2]} 17... g5 {[%clk 0:02:16.4]} 18. h5 {[%clk 0:02:47.8]} 18...
Bd7 {[%clk 0:02:06.7]} 19. Be3 {[%clk 0:02:45.5]} 19... b6 {[%clk 0:02:04.9]}
20. b4 {[%clk 0:02:44.9]} 20... Qc7 {[%clk 0:01:59.3]} 21. b5 {[%clk 0:02:25.5]}
21... Rf8 {[%clk 0:01:52.4]} 22. a4 {[%clk 0:02:24.2]} 22... Rf4 {[%clk
0:01:51.6]} 23. a5 {[%clk 0:02:19.6]} 23... Nf6 {[%clk 0:01:44]} 24. axb6 {[%clk
0:02:17.7]} 24... axb6 {[%clk 0:01:43]} 25. Ra8+ {[%clk 0:02:15.4]} 25... Kh7
{[%clk 0:01:42.5]} 26. Kg2 {[%clk 0:02:12.1]} 26... Bc8 {[%clk 0:01:22.5]} 27.
Bxf4 {[%clk 0:01:54.9]} 27... gxf4 {[%clk 0:01:20.5]} 28. Bf3 {[%clk 0:01:49.4]}
28... Bb7 {[%clk 0:01:13.6]} 29. Ra7 {[%clk 0:01:47.5]} 29... Nc8 {[%clk
0:01:13.1]} 30. Ra3 {[%clk 0:01:46.1]} 30... Kg8 {[%clk 0:01:10.9]} 31. Kf1
{[%clk 0:01:38.8]} 31... Nh7 {[%clk 0:01:06.5]} 32. Nh3 {[%clk 0:01:37.9]} 32...
Bf6 {[%clk 0:01:03.6]} 33. Ke2 {[%clk 0:01:37.1]} 33... Ng5 {[%clk 0:01:02.9]}
34. Nxg5 {[%clk 0:01:37.2]} 34... Bxg5 {[%clk 0:01:03.8]} 35. Kd3 {[%clk
0:01:37.5]} 35... Kf7 {[%clk 0:01:03.6]} 36. Qa1 {[%clk 0:01:32.3]} 36... Qb8
{[%clk 0:01:03.4]} 37. Ra6 {[%clk 0:01:27.7]} 37... Ke8 {[%clk 0:01:03.2]} 38.
Qa4 {[%clk 0:01:26.8]} 38... Kd7 {[%clk 0:01:03.2]} 39. Qa1 {[%clk 0:01:19.9]}
39... Kc7 {[%clk 0:01:03.1]} 40. Ra2 {[%clk 0:01:19.5]} 40... Ne7 {[%clk
0:01:02.2]} 41. Ne2 {[%clk 0:01:18.2]} 41... Ng8 {[%clk 0:01:01.8]} 42. Ng1
{[%clk 0:01:15.9]} 42... Nf6 {[%clk 0:01:01.4]} 43. Nh3 {[%clk 0:01:15.2]} 43...
Nh7 {[%clk 0:01:00.7]} 44. Ra6 {[%clk 0:01:10.7]} 44... Qc8 {[%clk 0:00:55.1]}
45. Ra7 {[%clk 0:01:09.8]} 45... Qb8 {[%clk 0:00:55.1]} 46. Qa6 {[%clk
0:01:06.3]} 46... Bd8 {[%clk 0:00:51.4]} 47. g5 {[%clk 0:01:01]} 47... Nxg5
{[%clk 0:00:47.3]} 48. Nxg5 {[%clk 0:01:00.7]} 48... Bxg5 {[%clk 0:00:48.2]} 49.
Bg4 {[%clk 0:01:01]} 49... Bd8 {[%clk 0:00:47.1]} 50. Bd7 {[%clk 0:00:58.7]}
50... Kxd7 {[%clk 0:00:46.7]} 51. Rxb7+ {[%clk 0:00:57.6]} 51... Qxb7 {[%clk
0:00:45.9]} 52. Qxb7+ {[%clk 0:00:58.5]} 52... Bc7 {[%clk 0:00:45.6]} 53. Ke2
{[%clk 0:00:54.5]} 1-0

[Event "Early-Titled-Tuesday-Blitz-September-26-2023"]
[Site "Chess.com"]
[Date "2023.09.26"]
[Round "7"]
[White "Aswathchess"]
[Black "AndrewB92"]
[Result "1-0"]
[WhiteElo "2581"]
[BlackElo "2364"]
[TimeControl "180+1"]
[EndTime "9:18:39 PDT"]
[Termination "Aswathchess won by resignation"]

1. Nf3 {[%clk 0:03:00.9]} 1... d5 {[%clk 0:03:00.1]} 2. g3 {[%clk 0:02:59.7]}
2... Nf6 {[%clk 0:03:00.2]} 3. Bg2 {[%clk 0:02:57.5]} 3... Bf5 {[%clk
0:03:00.6]} 4. d3 {[%clk 0:02:55.9]} 4... c6 {[%clk 0:03:00.2]} 5. O-O {[%clk
0:02:54.3]} 5... Nbd7 {[%clk 0:03:00.5]} 6. Nbd2 {[%clk 0:02:53.6]} 6... e6
{[%clk 0:02:59.7]} 7. Re1 {[%clk 0:02:52.1]} 7... Be7 {[%clk 0:02:59.4]} 8. e4
{[%clk 0:02:51.8]} 8... dxe4 {[%clk 0:02:57.3]} 9. dxe4 {[%clk 0:02:52.7]} 9...
Bg6 {[%clk 0:02:57.2]} 10. Qe2 {[%clk 0:02:52.7]} 10... O-O {[%clk 0:02:49.2]}
11. c3 {[%clk 0:02:52.1]} 11... Nc5 {[%clk 0:02:45.1]} 12. Ne5 {[%clk
0:02:41.4]} 12... a5 {[%clk 0:02:34.1]} 13. Nxg6 {[%clk 0:02:37.5]} 13... hxg6
{[%clk 0:02:33.4]} 14. Nc4 {[%clk 0:02:36]} 14... Qd3 {[%clk 0:02:23.4]} 15. Ne5
{[%clk 0:02:22.8]} 15... Qxe2 {[%clk 0:02:20.8]} 16. Rxe2 {[%clk 0:02:23.7]}
16... Rfd8 {[%clk 0:02:15.1]} 17. Bg5 {[%clk 0:02:20.3]} 17... Kf8 {[%clk
0:01:56.9]} 18. h4 {[%clk 0:02:16.3]} 18... Nfd7 {[%clk 0:01:50.7]} 19. Nxd7+
{[%clk 0:02:11]} 19... Rxd7 {[%clk 0:01:50.1]} 20. Be3 {[%clk 0:02:11.3]} 20...
Rad8 {[%clk 0:01:42.6]} 21. Bf3 {[%clk 0:02:06.9]} 21... Rd1+ {[%clk 0:01:39.5]}
22. Re1 {[%clk 0:02:06.5]} 22... Rxa1 {[%clk 0:01:36.4]} 23. Rxa1 {[%clk
0:02:06.1]} 23... Na4 {[%clk 0:01:30.4]} 24. Rb1 {[%clk 0:02:04.6]} 24... Bc5
{[%clk 0:01:24.5]} 25. Bf4 {[%clk 0:01:44.3]} 25... e5 {[%clk 0:01:13.5]} 26.
Bxe5 {[%clk 0:01:39.8]} 26... Rd2 {[%clk 0:01:13.3]} 27. Bd4 {[%clk 0:01:03.5]}
27... Bxd4 {[%clk 0:01:12.9]} 28. cxd4 {[%clk 0:01:03]} 28... Rxd4 {[%clk
0:01:12.2]} 29. e5 {[%clk 0:00:52.5]} 29... Rd2 {[%clk 0:01:07.9]} 30. b4 {[%clk
0:00:52.5]} 30... Nc3 {[%clk 0:01:04.4]} 31. Rb3 {[%clk 0:00:50]} 31... axb4
{[%clk 0:00:51.7]} 32. Rxb4 {[%clk 0:00:50.9]} 32... Rd7 {[%clk 0:00:24.6]} 33.
a4 {[%clk 0:00:50.1]} 33... Ke7 {[%clk 0:00:23.4]} 34. a5 {[%clk 0:00:48.5]}
34... Ke6 {[%clk 0:00:21.8]} 35. Bg4+ {[%clk 0:00:48.3]} 1-0

[Event "Early-Titled-Tuesday-Blitz-September-26-2023"]
[Site "Chess.com"]
[Date "2023.09.26"]
[Round "7"]
[White "Me_ch_an"]
[Black "LUISMIGUELOV"]
[Result "1-0"]
[WhiteElo "2345"]
[BlackElo "2140"]
[TimeControl "180+1"]
[EndTime "9:18:41 PDT"]
[Termination "Me_ch_an won on time"]

1. e4 {[%clk 0:03:00.9]} 1... c6 {[%clk 0:02:54.5]} 2. d4 {[%clk 0:03:00.8]}
2... d5 {[%clk 0:02:53.9]} 3. Nd2 {[%clk 0:03:01.4]} 3... dxe4 {[%clk
0:02:49.5]} 4. Nxe4 {[%clk 0:03:01.5]} 4... Bf5 {[%clk 0:02:50.2]} 5. Ng3 {[%clk
0:03:01.5]} 5... Bg6 {[%clk 0:02:50.9]} 6. Nf3 {[%clk 0:03:01.9]} 6... Nd7
{[%clk 0:02:50.5]} 7. h4 {[%clk 0:03:02.2]} 7... h6 {[%clk 0:02:50.8]} 8. h5
{[%clk 0:03:02.7]} 8... Bh7 {[%clk 0:02:51.1]} 9. Bd3 {[%clk 0:03:03.3]} 9...
Bxd3 {[%clk 0:02:51.6]} 10. Qxd3 {[%clk 0:03:04.2]} 10... e6 {[%clk 0:02:51.9]}
11. Bd2 {[%clk 0:03:04.6]} 11... Ngf6 {[%clk 0:02:48.2]} 12. O-O-O {[%clk
0:03:04.7]} 12... Bd6 {[%clk 0:02:45]} 13. Ne4 {[%clk 0:03:04.7]} 13... Nxe4
{[%clk 0:02:44.4]} 14. Qxe4 {[%clk 0:03:05.6]} 14... Nf6 {[%clk 0:02:42.4]} 15.
Qe2 {[%clk 0:03:05.6]} 15... Qc7 {[%clk 0:02:38.5]} 16. Kb1 {[%clk 0:03:05.5]}
16... O-O-O {[%clk 0:02:37.7]} 17. c4 {[%clk 0:03:05.7]} 17... Bf4 {[%clk
0:02:34.5]} 18. Bc3 {[%clk 0:03:05.6]} 18... Rhe8 {[%clk 0:02:32]} 19. Qc2
{[%clk 0:03:04.8]} 19... Bd6 {[%clk 0:02:25.7]} 20. Qa4 {[%clk 0:03:00.6]} 20...
Ne4 {[%clk 0:02:15.4]} 21. Be1 {[%clk 0:02:53.7]} 21... b6 {[%clk 0:02:07.8]}
22. Qc2 {[%clk 0:02:41.2]} 22... f5 {[%clk 0:02:04.2]} 23. Nh4 {[%clk
0:01:54.8]} 23... Qf7 {[%clk 0:01:38.4]} 24. f3 {[%clk 0:01:47.8]} 24... Nf6
{[%clk 0:01:38.3]} 25. Rf1 {[%clk 0:01:23.1]} 25... Qxh5 {[%clk 0:01:35.2]} 26.
d5 {[%clk 0:01:14]} 26... Kb7 {[%clk 0:01:23.1]} 27. dxe6 {[%clk 0:01:06.3]}
27... f4 {[%clk 0:00:51]} 28. Nf5 {[%clk 0:01:04.6]} 28... Qh2 {[%clk
0:00:11.4]} 29. Rxd6 {[%clk 0:00:49]} 29... Rc8 {[%clk 0:00:05]} 30. Nxg7 {[%clk
0:00:47.1]} 30... Re7 {[%clk 0:00:03.7]} 31. Nf5 {[%clk 0:00:46.2]} 31... Ree8
{[%clk 0:00:03.3]} 32. Bc3 {[%clk 0:00:44.6]} 32... Nh5 {[%clk 0:00:01.8]} 33.
Rd7+ {[%clk 0:00:44]} 1-0